[Event "*** Titled Tuesday Blitz"]
[Site "Chess.com"]
[Date "2019.02.05"]
[Round "6"]
[White "AkibaRubi"]
[Black "talento10"]
[Result "0-1"]
[WhiteElo "2538"]
[BlackElo "2427"]
[TimeControl "180+2"]
[EndTime "14:24:13 PST"]
[Termination "talento10 won by resignation"]

1. d4 {[%clk 0:02:57.5]} 1... Nf6 {[%clk 0:03:00]} 2. c4 {[%clk 0:02:58]} 2...
g6 {[%clk 0:02:46.3]} 3. Nc3 {[%clk 0:02:55.9]} 3... Bg7 {[%clk 0:02:43.2]} 4.
e4 {[%clk 0:02:57]} 4... d6 {[%clk 0:02:37.7]} 5. Nf3 {[%clk 0:02:57.4]} 5...
O-O {[%clk 0:02:38.7]} 6. Bd3 {[%clk 0:02:52.7]} 6... e5 {[%clk 0:02:37.5]} 7.
d5 {[%clk 0:02:52]} 7... a5 {[%clk 0:02:37.4]} 8. O-O {[%clk 0:02:27.2]} 8...
Nh5 {[%clk 0:02:37.6]} 9. h3 {[%clk 0:02:08.8]} 9... Qe8 {[%clk 0:02:26.3]} 10.
Re1 {[%clk 0:01:59.8]} 10... Na6 {[%clk 0:02:26.9]} 11. b3 {[%clk 0:01:54.2]}
11... Nf4 {[%clk 0:02:22.3]} 12. Bc2 {[%clk 0:01:54.1]} 12... Qd7 {[%clk
0:01:51.6]} 13. Ne2 {[%clk 0:01:10.4]} 13... Nxg2 {[%clk 0:01:06.7]} 14. Kxg2
{[%clk 0:00:48.9]} 14... Qxh3+ {[%clk 0:01:06.8]} 15. Kg1 {[%clk 0:00:50]} 15...
Bg4 {[%clk 0:01:08.7]} 16. Ng3 {[%clk 0:00:48.3]} 16... h6 {[%clk 0:00:59.3]}
17. Bd3 {[%clk 0:00:44.8]} 17... f5 {[%clk 0:00:55.5]} 18. Bf1 {[%clk
0:00:43.4]} 18... Bxf3 {[%clk 0:00:50.1]} 19. Bxh3 {[%clk 0:00:25.9]} 19... Bxd1
{[%clk 0:00:50.2]} 20. Rxd1 {[%clk 0:00:26.9]} 20... f4 {[%clk 0:00:40.8]} 21.
Nf1 {[%clk 0:00:24.6]} 21... Nc5 {[%clk 0:00:42.3]} 22. f3 {[%clk 0:00:21.6]}
22... Bf6 {[%clk 0:00:41.6]} 23. Kf2 {[%clk 0:00:20.2]} 23... Kf7 {[%clk
0:00:42.5]} 24. Nd2 {[%clk 0:00:19.7]} 24... Rh8 {[%clk 0:00:43.1]} 25. Ba3
{[%clk 0:00:20.2]} 25... b6 {[%clk 0:00:43.6]} 26. Bxc5 {[%clk 0:00:20.9]} 26...
bxc5 {[%clk 0:00:45.5]} 27. Rh1 {[%clk 0:00:21.9]} 27... h5 {[%clk 0:00:44]} 28.
Be6+ {[%clk 0:00:21.9]} 28... Ke7 {[%clk 0:00:45.5]} 29. Rag1 {[%clk 0:00:22.7]}
29... g5 {[%clk 0:00:46.5]} 30. Nf1 {[%clk 0:00:22.7]} 30... a4 {[%clk
0:00:47.3]} 31. Nd2 {[%clk 0:00:21.8]} 31... axb3 {[%clk 0:00:48.1]} 32. axb3
{[%clk 0:00:22.9]} 32... Ra2 {[%clk 0:00:48.7]} 33. Rd1 {[%clk 0:00:24.4]} 33...
h4 {[%clk 0:00:36.9]} 34. Bg4 {[%clk 0:00:24.2]} 34... Rb8 {[%clk 0:00:37.6]}
35. Ke1 {[%clk 0:00:21.8]} 35... Rc2 {[%clk 0:00:33]} 36. Rh2 {[%clk 0:00:22.5]}
36... Ra8 {[%clk 0:00:33.4]} 37. Re2 {[%clk 0:00:22.8]} 37... Raa2 {[%clk
0:00:33.8]} 38. Kf2 {[%clk 0:00:22.8]} 38... Kd8 {[%clk 0:00:31.7]} 39. Ke1
{[%clk 0:00:19.6]} 39... Rab2 {[%clk 0:00:32.4]} 40. Rb1 {[%clk 0:00:19.1]}
40... Ra2 {[%clk 0:00:33.3]} 41. Kd1 {[%clk 0:00:16.9]} 41... c6 {[%clk
0:00:32.3]} 42. Ke1 {[%clk 0:00:16.7]} 42... Kc7 {[%clk 0:00:32.5]} 43. dxc6
{[%clk 0:00:16.2]} 43... Kxc6 {[%clk 0:00:33.7]} 44. Kd1 {[%clk 0:00:13.8]}
44... Bd8 {[%clk 0:00:34.5]} 45. Bh3 {[%clk 0:00:15.2]} 45... Ba5 {[%clk
0:00:34.6]} 46. Bf1 {[%clk 0:00:15.3]} 0-1

[Event "*** Titled Tuesday Blitz"]
[Site "Chess.com"]
[Date "2019.02.05"]
[Round "6"]
[White "m3alam"]
[Black "Chess2019Player"]
[Result "0-1"]
[WhiteElo "2149"]
[BlackElo "2052"]
[TimeControl "180+2"]
[EndTime "14:24:14 PST"]
[Termination "Chess2019Player won by resignation"]

1. d4 {[%clk 0:03:01.5]} 1... Nf6 {[%clk 0:02:58.6]} 2. Nf3 {[%clk 0:03:03]}
2... c5 {[%clk 0:02:56.7]} 3. d5 {[%clk 0:02:58]} 3... e6 {[%clk 0:02:56]} 4. c4
{[%clk 0:02:58.2]} 4... exd5 {[%clk 0:02:56.7]} 5. cxd5 {[%clk 0:02:59.3]} 5...
d6 {[%clk 0:02:57.8]} 6. Nc3 {[%clk 0:03:00.5]} 6... g6 {[%clk 0:02:59.1]} 7. g3
{[%clk 0:03:02]} 7... Bg7 {[%clk 0:03:00.6]} 8. Bg2 {[%clk 0:03:03.9]} 8... O-O
{[%clk 0:03:02.2]} 9. Nd2 {[%clk 0:03:05.8]} 9... a6 {[%clk 0:02:58.6]} 10. a4
{[%clk 0:02:45.5]} 10... Re8 {[%clk 0:02:58.2]} 11. Nc4 {[%clk 0:02:42.2]} 11...
Qe7 {[%clk 0:02:52.2]} 12. Bf4 {[%clk 0:02:37.1]} 12... Rd8 {[%clk 0:02:45.4]}
13. Nb6 {[%clk 0:02:37.8]} 13... Ra7 {[%clk 0:02:45.6]} 14. O-O {[%clk
0:02:11.2]} 14... Nbd7 {[%clk 0:02:41.5]} 15. Nxc8 {[%clk 0:02:05.1]} 15... Rxc8
{[%clk 0:02:43.4]} 16. Re1 {[%clk 0:02:02.3]} 16... b6 {[%clk 0:02:24.1]} 17. e4
{[%clk 0:02:01.8]} 17... Ne5 {[%clk 0:02:15.6]} 18. Qe2 {[%clk 0:01:52.9]} 18...
Re8 {[%clk 0:01:49.8]} 19. h3 {[%clk 0:01:49.4]} 19... Nfd7 {[%clk 0:01:39.6]}
20. Rad1 {[%clk 0:01:33.2]} 20... c4 {[%clk 0:01:35.5]} 21. Qe3 {[%clk
0:01:19.4]} 21... Nd3 {[%clk 0:01:23.6]} 22. Re2 {[%clk 0:01:19.9]} 22... N7c5
{[%clk 0:01:17.7]} 23. b4 {[%clk 0:01:07.4]} 23... Nxf4 {[%clk 0:00:50.3]} 24.
gxf4 {[%clk 0:01:02.7]} 24... Nd3 {[%clk 0:00:47.3]} 25. Na2 {[%clk 0:00:52.8]}
25... b5 {[%clk 0:00:44.5]} 26. Qb6 {[%clk 0:00:47]} 26... Nxf4 {[%clk
0:00:39.7]} 27. Re3 {[%clk 0:00:40.3]} 27... bxa4 {[%clk 0:00:21.1]} 28. Rc1
{[%clk 0:00:30.8]} 28... Qg5 {[%clk 0:00:16.8]} 29. Rg3 {[%clk 0:00:20.3]} 29...
Ne2+ {[%clk 0:00:15.7]} 30. Kh2 {[%clk 0:00:21.4]} 30... Nxg3 {[%clk 0:00:13.9]}
31. fxg3 {[%clk 0:00:21.7]} 31... Qe7 {[%clk 0:00:08.8]} 32. Rxc4 {[%clk
0:00:21.4]} 32... h5 {[%clk 0:00:08]} 33. Rc6 {[%clk 0:00:20.3]} 33... Be5
{[%clk 0:00:08.2]} 34. h4 {[%clk 0:00:21]} 34... Qxh4+ {[%clk 0:00:08.3]} 35.
Kg1 {[%clk 0:00:20.8]} 35... Qe7 {[%clk 0:00:06.3]} 36. Nc1 {[%clk 0:00:18.4]}
36... a3 {[%clk 0:00:06.3]} 37. Ne2 {[%clk 0:00:20.3]} 37... a2 {[%clk
0:00:07.2]} 38. Rc1 {[%clk 0:00:19.7]} 0-1

[Event "*** Titled Tuesday Blitz"]
[Site "Chess.com"]
[Date "2019.02.05"]
[Round "6"]
[White "masrahi"]
[Black "Eliwood44"]
[Result "0-1"]
[WhiteElo "1849"]
[BlackElo "2118"]
[TimeControl "180+2"]
[EndTime "14:24:16 PST"]
[Termination "Eliwood44 won by resignation"]

1. c4 {[%clk 0:03:01.9]} 1... e6 {[%clk 0:03:00.3]} 2. Nc3 {[%clk 0:03:00.2]}
2... d5 {[%clk 0:02:59.6]} 3. d4 {[%clk 0:02:59.2]} 3... Nf6 {[%clk 0:02:59]} 4.
cxd5 {[%clk 0:02:59.4]} 4... exd5 {[%clk 0:03:00.9]} 5. Bg5 {[%clk 0:03:00.9]}
5... Nbd7 {[%clk 0:02:59.6]} 6. e3 {[%clk 0:03:00.6]} 6... Be7 {[%clk
0:02:58.7]} 7. Bd3 {[%clk 0:03:01.4]} 7... c6 {[%clk 0:02:58.3]} 8. Qc2 {[%clk
0:03:01.3]} 8... h6 {[%clk 0:02:59.6]} 9. Bh4 {[%clk 0:03:01.3]} 9... Nh5 {[%clk
0:02:56.1]} 10. Bxe7 {[%clk 0:02:53.9]} 10... Qxe7 {[%clk 0:02:58]} 11. Nf3
{[%clk 0:02:50.5]} 11... Nhf6 {[%clk 0:02:56.6]} 12. O-O {[%clk 0:02:46]} 12...
O-O {[%clk 0:02:56.9]} 13. Rab1 {[%clk 0:02:44.6]} 13... a5 {[%clk 0:02:55.1]}
14. a3 {[%clk 0:02:44.4]} 14... Re8 {[%clk 0:02:50.6]} 15. b4 {[%clk 0:02:44.3]}
15... axb4 {[%clk 0:02:51.9]} 16. axb4 {[%clk 0:02:45]} 16... b5 {[%clk
0:02:53.3]} 17. h3 {[%clk 0:02:31.9]} 17... Nb6 {[%clk 0:02:52.1]} 18. Ne5
{[%clk 0:02:32.7]} 18... Bb7 {[%clk 0:02:49.3]} 19. Be2 {[%clk 0:01:20.8]} 19...
Nfd7 {[%clk 0:02:25.4]} 20. Nxd7 {[%clk 0:01:13.7]} 20... Qxd7 {[%clk
0:02:24.9]} 21. Na2 {[%clk 0:01:08.9]} 21... Nc4 {[%clk 0:02:24.3]} 22. Nc1
{[%clk 0:01:08.9]} 22... Na3 {[%clk 0:02:13.6]} 23. Qb2 {[%clk 0:00:57.4]} 23...
Nxb1 {[%clk 0:02:14.1]} 24. Qxb1 {[%clk 0:00:59.3]} 24... Qd6 {[%clk 0:02:11.9]}
25. Nd3 {[%clk 0:00:58.5]} 25... Bc8 {[%clk 0:02:11]} 26. Nc5 {[%clk 0:00:44.7]}
26... Re7 {[%clk 0:02:11.2]} 27. Qd3 {[%clk 0:00:23.8]} 27... Rea7 {[%clk
0:02:09.9]} 28. Rc1 {[%clk 0:00:18.2]} 28... Ra1 {[%clk 0:02:09.9]} 29. Qd1
{[%clk 0:00:15.9]} 29... Rxc1 {[%clk 0:02:08.7]} 30. Qxc1 {[%clk 0:00:17.8]}
30... Bf5 {[%clk 0:02:09.9]} 31. Bf3 {[%clk 0:00:16.3]} 31... Ra2 {[%clk
0:02:07.7]} 32. Nb7 {[%clk 0:00:13.7]} 32... Qb8 {[%clk 0:01:58.5]} 33. Nc5
{[%clk 0:00:11.8]} 33... Qa7 {[%clk 0:01:48]} 34. Kh2 {[%clk 0:00:11.6]} 34...
Ra1 {[%clk 0:01:48.5]} 35. Qc3 {[%clk 0:00:10.6]} 35... Qa3 {[%clk 0:01:48.2]}
36. Qxa3 {[%clk 0:00:09.2]} 36... Rxa3 {[%clk 0:01:49.1]} 37. g4 {[%clk
0:00:09.7]} 37... Bc8 {[%clk 0:01:46.3]} 38. Kg3 {[%clk 0:00:11]} 38... Ra2
{[%clk 0:01:46.4]} 39. h4 {[%clk 0:00:11.2]} 39... Rb2 {[%clk 0:01:47.6]} 40.
Nd3 {[%clk 0:00:10.9]} 40... Rb3 {[%clk 0:01:48.4]} 41. Ne5 {[%clk 0:00:12.2]}
41... Bb7 {[%clk 0:01:45.1]} 42. Nd7 {[%clk 0:00:12]} 42... Rxb4 {[%clk
0:01:45.1]} 43. Nc5 {[%clk 0:00:12.3]} 43... Bc8 {[%clk 0:01:46]} 44. g5 {[%clk
0:00:10.9]} 44... hxg5 {[%clk 0:01:46.6]} 45. hxg5 {[%clk 0:00:12.8]} 45... g6
{[%clk 0:01:48.5]} 46. Bg4 {[%clk 0:00:14.2]} 46... Bxg4 {[%clk 0:01:48.9]} 47.
Kxg4 {[%clk 0:00:16.1]} 47... Rb2 {[%clk 0:01:48]} 48. Nd3 {[%clk 0:00:17.2]}
48... Rd2 {[%clk 0:01:48.8]} 49. Ne5 {[%clk 0:00:18.1]} 49... Rxf2 {[%clk
0:01:46.6]} 50. Nxc6 {[%clk 0:00:18.9]} 50... Rc2 {[%clk 0:01:45.6]} 51. Nb4
{[%clk 0:00:20.1]} 51... Rc4 {[%clk 0:01:43.3]} 52. Nxd5 {[%clk 0:00:21.3]}
52... b4 {[%clk 0:01:44.6]} 53. Kf3 {[%clk 0:00:21.2]} 53... b3 {[%clk
0:01:45.5]} 54. Ke2 {[%clk 0:00:19]} 54... b2 {[%clk 0:01:46.3]} 55. Kd3 {[%clk
0:00:20.6]} 55... Rc1 {[%clk 0:01:45.6]} 56. Ne7+ {[%clk 0:00:21]} 56... Kf8
{[%clk 0:01:43.2]} 57. Nd5 {[%clk 0:00:19.7]} 57... b1=Q+ {[%clk 0:01:44.1]} 0-1

[Event "*** Titled Tuesday Blitz"]
[Site "Chess.com"]
[Date "2019.02.05"]
[Round "6"]
[White "iLuusions"]
[Black "dmosesov"]
[Result "1-0"]
[WhiteElo "2624"]
[BlackElo "2360"]
[TimeControl "180+2"]
[EndTime "14:24:20 PST"]
[Termination "iLuusions won by resignation"]

1. d4 {[%clk 0:03:01.2]} 1... Nf6 {[%clk 0:03:00.7]} 2. c4 {[%clk 0:03:00]} 2...
e6 {[%clk 0:02:59.4]} 3. Nf3 {[%clk 0:02:54.8]} 3... d5 {[%clk 0:03:00.1]} 4. g3
{[%clk 0:02:55.7]} 4... dxc4 {[%clk 0:03:00.5]} 5. Bg2 {[%clk 0:02:56]} 5... b5
{[%clk 0:03:01.6]} 6. a4 {[%clk 0:02:53.5]} 6... c6 {[%clk 0:03:01.9]} 7. axb5
{[%clk 0:02:46.8]} 7... cxb5 {[%clk 0:03:02.7]} 8. Ne5 {[%clk 0:02:48.2]} 8...
Nd5 {[%clk 0:02:57.7]} 9. Nc3 {[%clk 0:02:49.2]} 9... Bb4 {[%clk 0:02:57.6]} 10.
O-O {[%clk 0:02:49.9]} 10... Bxc3 {[%clk 0:02:49]} 11. bxc3 {[%clk 0:02:25.7]}
11... O-O {[%clk 0:02:49.5]} 12. Qc2 {[%clk 0:02:20.4]} 12... Bb7 {[%clk
0:02:48.3]} 13. Ba3 {[%clk 0:02:19.5]} 13... Re8 {[%clk 0:02:44.6]} 14. Rfb1
{[%clk 0:02:20.1]} 14... a6 {[%clk 0:02:01.4]} 15. e4 {[%clk 0:02:19.5]} 15...
Nb6 {[%clk 0:01:56.2]} 16. f4 {[%clk 0:02:02.6]} 16... Nc6 {[%clk 0:01:48.5]}
17. Nf3 {[%clk 0:01:43.8]} 17... Na5 {[%clk 0:01:19.3]} 18. Bc5 {[%clk
0:01:31.2]} 18... Na4 {[%clk 0:01:13.6]} 19. Rxa4 {[%clk 0:01:27.5]} 19... bxa4
{[%clk 0:01:15.5]} 20. Bb6 {[%clk 0:01:29]} 20... Nb3 {[%clk 0:00:38.9]} 21.
Bxd8 {[%clk 0:01:28]} 21... Raxd8 {[%clk 0:00:40.4]} 22. e5 {[%clk 0:01:04.2]}
22... h6 {[%clk 0:00:25]} 23. Ng5 {[%clk 0:00:56.9]} 23... Bxg2 {[%clk
0:00:24.7]} 24. Qh7+ {[%clk 0:00:48]} 24... Kf8 {[%clk 0:00:25.6]} 25. Qh8+
{[%clk 0:00:43.1]} 25... Ke7 {[%clk 0:00:26.6]} 26. Qxg7 {[%clk 0:00:43.9]}
26... hxg5 {[%clk 0:00:27.5]} 27. Kxg2 {[%clk 0:00:41.7]} 27... a3 {[%clk
0:00:19.1]} 28. fxg5 {[%clk 0:00:40]} 28... a2 {[%clk 0:00:18.5]} 29. Rf1 {[%clk
0:00:40.5]} 29... Rf8 {[%clk 0:00:17.6]} 30. g6 {[%clk 0:00:40.3]} 30... Kd7
{[%clk 0:00:06.2]} 31. gxf7 {[%clk 0:00:12.8]} 31... a1=Q {[%clk 0:00:06.8]} 32.
Rxa1 {[%clk 0:00:13.9]} 32... Nxa1 {[%clk 0:00:08.7]} 33. g4 {[%clk 0:00:15.8]}
33... Nb3 {[%clk 0:00:08]} 34. g5 {[%clk 0:00:16.6]} 34... a5 {[%clk 0:00:09.5]}
35. g6 {[%clk 0:00:17]} 35... a4 {[%clk 0:00:11]} 36. Qf6 {[%clk 0:00:13.3]}
36... a3 {[%clk 0:00:11.2]} 37. Qf3 {[%clk 0:00:12.3]} 37... Ke7 {[%clk
0:00:10.4]} 38. Qb7+ {[%clk 0:00:12.2]} 38... Rd7 {[%clk 0:00:11.6]} 39. Qb4+
{[%clk 0:00:13.4]} 1-0

[Event "*** Titled Tuesday Blitz"]
[Site "Chess.com"]
[Date "2019.02.05"]
[Round "6"]
[White "JoachimMouhamad"]
[Black "StoreySniper"]
[Result "0-1"]
[WhiteElo "2284"]
[BlackElo "2342"]
[TimeControl "180+2"]
[EndTime "14:24:22 PST"]
[Termination "StoreySniper won by checkmate"]

1. e4 {[%clk 0:03:01.8]} 1... d5 {[%clk 0:02:58.6]} 2. exd5 {[%clk 0:03:02.5]}
2... Qxd5 {[%clk 0:02:59.6]} 3. Nc3 {[%clk 0:03:03.7]} 3... Qd6 {[%clk
0:03:00.1]} 4. d4 {[%clk 0:02:59.7]} 4... Nf6 {[%clk 0:02:57.6]} 5. g3 {[%clk
0:02:57.9]} 5... Nc6 {[%clk 0:02:55.7]} 6. Nf3 {[%clk 0:02:49.7]} 6... Bg4
{[%clk 0:02:55.2]} 7. Bf4 {[%clk 0:02:45.3]} 7... Qe6+ {[%clk 0:02:43.2]} 8. Be3
{[%clk 0:02:10.4]} 8... O-O-O {[%clk 0:02:36.5]} 9. Be2 {[%clk 0:02:06]} 9...
Bxf3 {[%clk 0:02:33.3]} 10. Bxf3 {[%clk 0:02:07]} 10... Nxd4 {[%clk 0:02:33.6]}
11. O-O {[%clk 0:01:55.7]} 11... Nxf3+ {[%clk 0:02:34.1]} 12. Qxf3 {[%clk
0:01:56.9]} 12... Qg4 {[%clk 0:02:25.1]} 13. Qg2 {[%clk 0:01:48]} 13... e6
{[%clk 0:02:24.7]} 14. Nb5 {[%clk 0:01:43.7]} 14... a6 {[%clk 0:02:14.1]} 15. a4
{[%clk 0:01:16.3]} 15... Qe4 {[%clk 0:02:10.8]} 16. Qh3 {[%clk 0:01:05.9]} 16...
axb5 {[%clk 0:02:03.3]} 17. axb5 {[%clk 0:01:07.1]} 17... Bd6 {[%clk 0:02:04.1]}
18. Rfe1 {[%clk 0:01:03]} 18... Qf5 {[%clk 0:02:02]} 19. Qg2 {[%clk 0:01:01.4]}
19... Qxb5 {[%clk 0:02:02.5]} 20. c4 {[%clk 0:00:59.1]} 20... Qc6 {[%clk
0:02:02.6]} 21. Qf1 {[%clk 0:00:52.3]} 21... Bc5 {[%clk 0:01:50.9]} 22. Ra8+
{[%clk 0:00:24.2]} 22... Kd7 {[%clk 0:01:51.3]} 23. Rxd8+ {[%clk 0:00:25.2]}
23... Rxd8 {[%clk 0:01:50.9]} 24. Bg5 {[%clk 0:00:24.7]} 24... Ke7 {[%clk
0:01:42.1]} 25. Qh3 {[%clk 0:00:20.4]} 25... h6 {[%clk 0:01:42.6]} 26. Bxf6+
{[%clk 0:00:20.1]} 26... gxf6 {[%clk 0:01:43.5]} 27. Qxh6 {[%clk 0:00:20.5]}
27... Qf3 {[%clk 0:01:14.4]} 28. Rf1 {[%clk 0:00:22]} 28... Rd1 {[%clk
0:01:14.3]} 29. Rxd1 {[%clk 0:00:21.2]} 29... Qxd1+ {[%clk 0:01:14.9]} 30. Kg2
{[%clk 0:00:23.1]} 30... Qd4 {[%clk 0:00:52.6]} 31. Kh3 {[%clk 0:00:19.4]} 31...
Qxf2 {[%clk 0:00:50.3]} 32. Qc1 {[%clk 0:00:17]} 32... Qf5+ {[%clk 0:00:35.4]}
33. Kg2 {[%clk 0:00:18.1]} 33... Qe4+ {[%clk 0:00:35.3]} 34. Kh3 {[%clk
0:00:19.6]} 34... Be3 {[%clk 0:00:29.9]} 35. Qc3 {[%clk 0:00:19]} 35... Bd4
{[%clk 0:00:27.4]} 36. Qb4+ {[%clk 0:00:19.3]} 36... c5 {[%clk 0:00:28.3]} 37.
Qb6 {[%clk 0:00:18.2]} 37... Qf5+ {[%clk 0:00:27.5]} 38. Kg2 {[%clk 0:00:18.7]}
38... Qf2+ {[%clk 0:00:28.2]} 39. Kh3 {[%clk 0:00:19.9]} 39... Qf1+ {[%clk
0:00:29.6]} 40. Kh4 {[%clk 0:00:20.6]} 40... f5 {[%clk 0:00:27]} 41. Qxb7+
{[%clk 0:00:21.5]} 41... Kf6 {[%clk 0:00:28.3]} 42. b4 {[%clk 0:00:19.4]} 42...
Qxc4 {[%clk 0:00:27]} 43. b5 {[%clk 0:00:21]} 43... Bg1+ {[%clk 0:00:21.4]} 44.
Kh3 {[%clk 0:00:22.6]} 44... Qe2 {[%clk 0:00:21.8]} 45. Qg2 {[%clk 0:00:20.5]}
45... Qh5# {[%clk 0:00:22.4]} 0-1

[Event "*** Titled Tuesday Blitz"]
[Site "Chess.com"]
[Date "2019.02.05"]
[Round "6"]
[White "StanislavNovikov"]
[Black "popov_m"]
[Result "1/2-1/2"]
[WhiteElo "2674"]
[BlackElo "2616"]
[TimeControl "180+2"]
[EndTime "14:24:24 PST"]
[Termination "Game drawn by repetition"]

1. e4 {[%clk 0:03:01.9]} 1... e6 {[%clk 0:02:58.7]} 2. Qe2 {[%clk 0:03:02.7]}
2... c5 {[%clk 0:02:57]} 3. Nf3 {[%clk 0:03:03.4]} 3... Nc6 {[%clk 0:02:58]} 4.
g3 {[%clk 0:03:02.9]} 4... d6 {[%clk 0:02:57.2]} 5. Bg2 {[%clk 0:03:02.2]} 5...
Nf6 {[%clk 0:02:58.7]} 6. O-O {[%clk 0:03:02.2]} 6... Be7 {[%clk 0:03:00.1]} 7.
c3 {[%clk 0:03:02.4]} 7... e5 {[%clk 0:02:58.5]} 8. Na3 {[%clk 0:03:00.9]} 8...
O-O {[%clk 0:02:59.1]} 9. h3 {[%clk 0:02:58]} 9... Rb8 {[%clk 0:02:58]} 10. Rd1
{[%clk 0:02:57.9]} 10... b5 {[%clk 0:02:56.8]} 11. d4 {[%clk 0:02:53]} 11... Qb6
{[%clk 0:02:40.1]} 12. dxe5 {[%clk 0:02:46.9]} 12... dxe5 {[%clk 0:02:39.3]} 13.
Bg5 {[%clk 0:02:47.6]} 13... h6 {[%clk 0:02:30]} 14. Bxf6 {[%clk 0:02:47.6]}
14... Bxf6 {[%clk 0:02:31.9]} 15. Nc2 {[%clk 0:02:48.2]} 15... Be6 {[%clk
0:02:32]} 16. Ne3 {[%clk 0:02:48.9]} 16... Ne7 {[%clk 0:02:31.3]} 17. Nh2 {[%clk
0:02:39.7]} 17... g6 {[%clk 0:02:25.9]} 18. h4 {[%clk 0:02:33.7]} 18... Rbd8
{[%clk 0:02:12.9]} 19. h5 {[%clk 0:02:29.9]} 19... Bg7 {[%clk 0:01:56.4]} 20.
Nhg4 {[%clk 0:02:08.7]} 20... f5 {[%clk 0:01:43.5]} 21. Nh2 {[%clk 0:02:01.3]}
21... f4 {[%clk 0:01:39.9]} 22. Nd5 {[%clk 0:02:01]} 22... Nxd5 {[%clk
0:01:27.5]} 23. exd5 {[%clk 0:02:00.4]} 23... Bc8 {[%clk 0:01:29.1]} 24. Be4
{[%clk 0:01:51.5]} 24... c4 {[%clk 0:00:58.8]} 25. Kg2 {[%clk 0:01:45.7]} 25...
Bf5 {[%clk 0:00:53.4]} 26. Nf3 {[%clk 0:00:55.6]} 26... Bg4 {[%clk 0:00:30.9]}
27. hxg6 {[%clk 0:00:51.4]} 27... Rf6 {[%clk 0:00:26.6]} 28. Rh1 {[%clk
0:00:42.5]} 28... Rdf8 {[%clk 0:00:25.4]} 29. Raf1 {[%clk 0:00:43.1]} 29... h5
{[%clk 0:00:20.2]} 30. Rh4 {[%clk 0:00:37.9]} 30... Qd6 {[%clk 0:00:20.6]} 31.
Rhh1 {[%clk 0:00:21]} 31... a5 {[%clk 0:00:21.6]} 32. a3 {[%clk 0:00:21.1]}
32... Qc5 {[%clk 0:00:10]} 33. Rh4 {[%clk 0:00:20.5]} 33... Qd6 {[%clk
0:00:11.1]} 34. Rh2 {[%clk 0:00:19.9]} 34... Bh6 {[%clk 0:00:10.3]} 35. Rh3
{[%clk 0:00:17.1]} 35... Kg7 {[%clk 0:00:10.2]} 36. Rh4 {[%clk 0:00:15.7]} 36...
Bg5 {[%clk 0:00:08.2]} 37. Rhh1 {[%clk 0:00:12.5]} 37... Bh6 {[%clk 0:00:07.4]}
38. Rh4 {[%clk 0:00:13]} 38... Qb6 {[%clk 0:00:06.6]} 39. Rhh1 {[%clk
0:00:12.2]} 39... Qd6 {[%clk 0:00:07.8]} 40. Rh4 {[%clk 0:00:13]} 40... Qb6
{[%clk 0:00:07.7]} 41. Rhh1 {[%clk 0:00:13.7]} 41... Qd6 {[%clk 0:00:08.8]} 42.
Rh4 {[%clk 0:00:14.7]} 42... Qc5 {[%clk 0:00:09.9]} 43. Rhh1 {[%clk 0:00:15.3]}
43... Qd6 {[%clk 0:00:06.3]} 1/2-1/2

[Event "*** Titled Tuesday Blitz"]
[Site "Chess.com"]
[Date "2019.02.05"]
[Round "6"]
[White "cool4chess"]
[Black "mouseWLZ"]
[Result "0-1"]
[WhiteElo "2309"]
[BlackElo "2478"]
[TimeControl "180+2"]
[EndTime "14:24:31 PST"]
[Termination "mouseWLZ won by resignation"]

1. e4 {[%clk 0:03:01.9]} 1... e6 {[%clk 0:02:59.8]} 2. d4 {[%clk 0:03:02.5]}
2... d5 {[%clk 0:03:00.9]} 3. Nc3 {[%clk 0:03:03.5]} 3... Nf6 {[%clk 0:03:01.9]}
4. Bg5 {[%clk 0:03:03.5]} 4... Bb4 {[%clk 0:03:01.8]} 5. e5 {[%clk 0:03:04.1]}
5... h6 {[%clk 0:03:03.1]} 6. Bh4 {[%clk 0:03:05.2]} 6... g5 {[%clk 0:03:01.2]}
7. Bg3 {[%clk 0:03:06.4]} 7... Ne4 {[%clk 0:03:01.9]} 8. Ne2 {[%clk 0:03:07.5]}
8... c5 {[%clk 0:02:56.2]} 9. f3 {[%clk 0:03:07.9]} 9... cxd4 {[%clk 0:02:48.1]}
10. fxe4 {[%clk 0:02:50.8]} 10... dxc3 {[%clk 0:02:46.8]} 11. bxc3 {[%clk
0:02:51.4]} 11... Ba5 {[%clk 0:02:42.5]} 12. exd5 {[%clk 0:02:35.7]} 12... Qxd5
{[%clk 0:02:42.9]} 13. Qxd5 {[%clk 0:02:31]} 13... exd5 {[%clk 0:02:44.8]} 14.
O-O-O {[%clk 0:02:31.2]} 14... Be6 {[%clk 0:02:43.4]} 15. Nd4 {[%clk 0:02:31]}
15... Bxc3 {[%clk 0:02:16.2]} 16. Nb5 {[%clk 0:02:31.3]} 16... Ba5 {[%clk
0:02:17.3]} 17. Nd6+ {[%clk 0:02:30.6]} 17... Ke7 {[%clk 0:02:16.5]} 18. Nxb7
{[%clk 0:02:27.2]} 18... Bb4 {[%clk 0:02:16.9]} 19. Bb5 {[%clk 0:01:59.1]} 19...
Rc8 {[%clk 0:01:56]} 20. Nd6 {[%clk 0:01:47.7]} 20... Rc7 {[%clk 0:01:51.6]} 21.
Rd3 {[%clk 0:01:42.4]} 21... Nd7 {[%clk 0:01:45.6]} 22. a3 {[%clk 0:01:36.3]}
22... Bc5 {[%clk 0:01:25.3]} 23. Rf1 {[%clk 0:01:05.4]} 23... Rb8 {[%clk
0:01:21.4]} 24. a4 {[%clk 0:00:51.2]} 24... Rb6 {[%clk 0:00:30.4]} 25. Rdf3
{[%clk 0:00:39.4]} 25... a6 {[%clk 0:00:14.5]} 26. Bxd7 {[%clk 0:00:40]} 26...
Kxd7 {[%clk 0:00:08.8]} 27. Nxf7 {[%clk 0:00:33.9]} 27... Rcb7 {[%clk
0:00:10.1]} 28. Nd6 {[%clk 0:00:29.1]} 28... Rb1+ {[%clk 0:00:11.2]} 29. Kd2
{[%clk 0:00:30.1]} 29... Rxf1 {[%clk 0:00:12.2]} 30. Rxf1 {[%clk 0:00:31.6]}
30... Rb4 {[%clk 0:00:12.7]} 31. a5 {[%clk 0:00:24.9]} 31... Rd4+ {[%clk
0:00:13.5]} 32. Kc3 {[%clk 0:00:22.1]} 32... Ra4 {[%clk 0:00:13.9]} 33. Nb7
{[%clk 0:00:19.3]} 33... d4+ {[%clk 0:00:12.5]} 34. Kd2 {[%clk 0:00:18.7]} 34...
Bb4+ {[%clk 0:00:13]} 35. Ke2 {[%clk 0:00:11.2]} 35... Bc4+ {[%clk 0:00:13.5]}
36. Kf2 {[%clk 0:00:12.9]} 36... Bxf1 {[%clk 0:00:14.5]} 37. Kxf1 {[%clk
0:00:14.8]} 37... Ra2 {[%clk 0:00:12.8]} 38. Bf2 {[%clk 0:00:11.1]} 38... Rxc2
{[%clk 0:00:07.5]} 39. Bxd4 {[%clk 0:00:11.8]} 39... Kc7 {[%clk 0:00:09]} 40.
Nd6 {[%clk 0:00:07.3]} 40... Bxd6 {[%clk 0:00:10.1]} 41. exd6+ {[%clk
0:00:09.2]} 41... Kxd6 {[%clk 0:00:12]} 42. Bg7 {[%clk 0:00:10.1]} 42... h5
{[%clk 0:00:12.7]} 43. Bf6 {[%clk 0:00:09.2]} 43... g4 {[%clk 0:00:14]} 44. h3
{[%clk 0:00:10.1]} 44... Kd5 {[%clk 0:00:13.7]} 45. hxg4 {[%clk 0:00:09.6]}
45... hxg4 {[%clk 0:00:15.6]} 46. g3 {[%clk 0:00:10]} 46... Ke4 {[%clk 0:00:17]}
47. Bd8 {[%clk 0:00:10.2]} 47... Kf3 {[%clk 0:00:17.6]} 0-1